Cogmind - Beta 13 @@@ ROGUE MODE // 2024.04.06 @ 12:00:47 Player: Sap Result: Destroyed by VN-R4N(R) with Subdweller Laser Performance ------------- Evolutions (0) 0 Regions Visited (2) 400 Robots Destroyed (22) 110 Value Destroyed (526) 526 Prototype IDs (2) 40 Alien Tech Used (0) 0 Bonus (0) 0 TOTAL SCORE: 1076 Bonus ------- None Cogmind --------- Core Integrity 0/250 Matter 201/300 Energy 74/100 System Corruption 0% Temperature Cool (6) Movement Walking (120) Location -10/Subcaves Parts ------- > --- POWER (1) -------- (None) > --- PROPULSION (2) --- Aluminum Leg Aluminum Leg > --- UTILITY (2) ------ Small Storage Unit Subdweller Optics > --- WEAPON (2) ------- Light Assault Rifle Subdweller Shrapnel Launcher > --- INVENTORY (8) ---- Subdweller Power Source Aluminum Leg High-capacity Matter Pod (200) Scrap Shield Light Assault Rifle Peak State ------------ > --- POWER ------------ Ion Engine > --- PROPULSION ------- Aluminum Leg Subdweller Monowheel > --- UTILITY ---------- Small Storage Unit Signal Interpreter > --- WEAPON ----------- Light Assault Rifle Light Assault Rifle > --- INVENTORY -------- Ion Engine Aluminum Leg Aluminum Leg High-capacity Matter Pod Scrap Shield Tractor Beam Light Assault Rifle [Rating: 9] Favorites ----------- Power Ion Engine Engine Ion Engine Propulsion Light Treads Treads Light Treads Leg Aluminum Leg Wheel Subdweller Monowheel Utility Small Storage Unit Device Heat Sink Storage Small Storage Unit Processor Signal Interpreter Weapon Light Assault Rifle Energy Gun Medium Laser Ballistic Gun Light Assault Rifle Launcher Subdweller Shrapnel Launcher Special Weapon Mining Laser Build | -11 -10 -10 ------- Run | Yrd Mat Sub Slots Evolved . | . . . Power . | . . . Propulsion . | . . . Utility . | . . . Weapon . | . . . Parts Attached 31 | 6 18 7 Power 6 | 1 3 2 Engine 6 | 1 3 2 Core . | . . . Reactor . | . . . Propulsion 12 | 2 8 2 Treads 2 | 2 . . Leg 9 | . 8 1 Wheel 1 | . . 1 Hover . | . . . Flight . | . . . Utility 5 | 1 3 1 Device 2 | . 1 1 Storage 1 | 1 . . Processor 2 | . 2 . Hackware . | . . . Protection . | . . . Artifact . | . . . Weapon 8 | 2 4 2 Energy Gun 1 | 1 . . Energy Cannon . | . . . Ballistic Gun 5 | 1 3 1 Ballistic Cannon . | . . . Launcher 1 | . . 1 Special Weapon 1 | . 1 . Impact Weapon . | . . . Slashing Weapon . | . . . Piercing Weapon . | . . . Special Melee Weapon . | . . . Unidentified Prototypes . | . . . Parts Lost 2 | . 1 1 Power 1 | . . 1 Propulsion 1 | . 1 . Utility . | . . . Weapon . | . . . Highest Loss Streak 1 | . 1 1 To Critical Strikes . | . . . Average Slot Usage (%) 97 | . 97 96 Engine 13 | . 13 13 Treads 14 | . 16 . Leg 12 | . 10 25 Device 1 | . 1 . Storage 14 | . 14 14 Processor 11 | . 10 14 Energy Gun 1 | . 2 . Ballistic Gun 25 | . 25 27 Naked Turns . | . . . Heaviest Build 16 | 13 14 16 Greatest Support 40 | 40 40 20 Greatest Overweight (x) 3 | . 3 3 Average Overweight (x) . | . . . Largest Inventory Capacity 8 | 8 8 8 Average Capacity 7 | 7 8 8 Most Carried 8 | 4 8 8 Average Carried 7 | 3 7 7 Final Capacity 8 | 8 8 8 Final Carried 8 | 4 8 6 Class Distribution -------------------- 100% | Mutant Dominant Class ---------------- Mutant | -10/Materials Mutant | -10/Subcaves Resources | -11 -10 -10 ----------- Run | Yrd Mat Sub Matter Collected 745 | 240 358 147 Remotely . | . . . Salvage Created 563 | 48 348 167 Parts 37 | 2 19 16 Haulers Intercepted . | . . . Recyclers Shooed . | . . . Parts Field Recycled . | . . . Retrieved Matter . | . . . Parts Self-Destructed 5 | . . 5 Prevented . | . . . Kills | -11 -10 -10 ------- Run | Yrd Mat Sub Combat Hostiles Destroyed 18 | . 11 7 Guns 13 | . 11 2 AOE 5 | . . 5 Classes Destroyed 6 | 2 3 1 Worker 1 | 1 . . Recycler 1 | 1 . . Watcher 2 | . 2 . Swarmer 7 | . 5 2 Grunt 6 | . 6 . Subdweller 5 | . . 5 Best Kill Streak 7 | 1 4 7 Combat Bots Only 7 | . 4 7 Max Kills in Single Turn 3 | 1 1 3 Gunslinging . | . . . Exploded 3 | . . 3 Melee . | . . . Uniques/NPCs Destroyed . | . . . Combat | -11 -10 -10 -------- Run | Yrd Mat Sub Hostile Shots Fired 113 | . 72 41 Missed 24 | . 15 9 Damage Taken 1065 | . 563 502 Core 257 | . 154 103 Absorbed by Shields . | . . . Core Remaining (%) 100 | 100 . . Volleys Fired 55 | 4 35 16 Largest 2 | 2 2 2 Hottest 70 | 70 70 60 Shots Fired 110 | 8 70 32 Gun 106 | 8 70 28 Cannon . | . . . Launcher 4 | . . 4 Special . | . . . Kinetic 87 | 4 51 32 Thermal 23 | 4 19 . Explosive . | . . . Electromagnetic . | . . . Robot Hit Streak 9 | 1 9 8 Robot Miss Streak 5 | 1 2 5 Penetration Max . | . . . Secondary Targets . | . . . Shots Hit Robots 65 | 4 50 11 Core Hits 37 | 2 22 13 Critical Kills 2 | . 2 . Critical Parts Destroyed . | . . . Critical Strikes 2 | . 2 . Destroy 2 | . 2 . Melee Attacks . | . . . Impact . | . . . Slashing . | . . . Piercing . | . . . Sneak Attacks . | . . . Combat Hostiles . | . . . Follow-up Attacks . | . . . Damage Inflicted 1486 | 52 491 943 Guns 647 | 46 489 112 Cannons . | . . . Explosions 831 | . . 831 Melee . | . . . Ramming 8 | 6 2 . Kinetic 1303 | 34 326 943 Thermal 175 | 12 163 . Explosive . | . . . Electromagnetic . | . . . Impact . | . . . Slashing . | . . . Piercing . | . . . Highest Corruption . | . . . Average Corruption . | . . . Corruption Purged . | . . . Corruption Blocked . | . . . Overload Shots . | . . . Overflow Damage . | . . . Projectiles . | . . . Explosions . | . . . Melee . | . . . Knockbacks . | . . . Impact . | . . . Kinetic . | . . . Secondary . | . . . Self-Inflicted Damage . | . . . Shots . | . . . Rammed 5 | 3 2 . Targets Rammed 6 | 4 2 . Kicked . | . . . Crushed 1 | 1 . . Highest Temperature 158 | 60 158 2 Average Temperature 61 | 30 67 2 Received Heat Transfer 294 | . 228 66 Siege Activations . | . . . Robots Corrupted . | . . . Combat Hostiles . | . . . Parts Fried . | . . . Impact Corruptions . | . . . Robots Melted . | . . . Combat Hostiles . | . . . Parts Melted 4 | . 4 . Heat Transferred 518 | 37 481 . Parts Sabotaged . | . . . Parts Stolen . | . . . Parts Stripped . | . . . Power Chain Reactions . | . . . Alert | -11 -10 -10 ------- Run | Yrd Mat Sub Peak Influence 196 | 10 196 . Initial 6 | . 6 . Average 40 | 5 45 . Maximum Alert Level . | . . . Low Security (%) 100 | 100 100 . Level 1 . | . . . Level 2 . | . . . Level 3 . | . . . Level 4 . | . . . Level 5 . | . . . High Security . | . . . Max Security . | . . . Squads Dispatched 2 | . 2 . Investigation 1 | . 1 . Extermination . | . . . Reinforcement 1 | . 1 . Assault . | . . . Garrison . | . . . Intercept . | . . . Searches Triggered . | . . . Construction Impeded . | . . . Haulers Reinforced . | . . . Active Scanning Responses . | . . . Cargo Convoy Interrupts . | . . . Stealth | -11 -10 -10 --------- Run | Yrd Mat Sub Distress Signals . | . . . Communications Jammed . | . . . Distress Signals . | . . . Times Spotted 48 | . 17 31 Peak Tracking Total 11 | . 5 11 Tactical Retreats 3 | . 1 2 Traps | -11 -10 -10 ------- Run | Yrd Mat Sub Traps Triggered 4 | . 4 . Indirectly . | . . . Trap Hack Attempts . | . . . Triggered . | . . . Disarmed 4 | . 4 . Reprogrammed . | . . . Reused . | . . . Traps Extracted . | . . . Installed . | . . . Triggered . | . . . Machines | -11 -10 -10 ---------- Run | Yrd Mat Sub Machines Disabled . | . . . Max in Single Turn . | . . . Machines Repaired . | . . . Machines Dismantled . | . . . Machines Sabotaged . | . . . Overloaded Fab Kills . | . . . Hacking | -11 -10 -10 --------- Run | Yrd Mat Sub Machines Accessed 7 | . 7 . Terminals 6 | . 6 . Fabricators . | . . . Repair Stations 1 | . 1 . Recycling Units . | . . . Scanalyzers . | . . . Garrison Access . | . . . Total Hacks 24 | . 24 . Successful 12 | . 12 . Failed 12 | . 12 . Catastrophic 1 | . 1 . Database Lockouts . | . . . Manual 5 | . 5 . Terminals 21 | . 21 . Fabricators . | . . . Repair Stations 3 | . 3 . Recycling Units . | . . . Scanalyzers . | . . . Garrison Access . | . . . Terminal Hacks 11 | . 11 . Record 1 | . 1 . Robot Analysis 1 | . 1 . Prototype ID Bank 1 | . 1 . Alert Level 2 | . 2 . Locate Traps 1 | . 1 . Disarm Traps 1 | . 1 . Maintenance Status 1 | . 1 . Transport Status 1 | . 1 . Assault Status 1 | . 1 . Zone Layout 1 | . 1 . Fabricator Hacks . | . . . Repair Station Hacks 1 | . 1 . Scan Component 1 | . 1 . Recycling Unit Hacks . | . . . Scanalyzer . | . . . Garrison Access Hacks . | . . . Unauthorized Hacks . | . . . Terminals . | . . . Fabricators . | . . . Repair Stations . | . . . Recycling Units . | . . . Scanalyzers . | . . . Garrison Access . | . . . Data Cores Recovered . | . . . Used . | . . . Hacking Detections 7 | . 7 . Full Trace Events . | . . . Feedback Events . | . . . Feedback Blocked . | . . . Robot Schematics Acquired . | . . . Robots Built . | . . . Authchips . | . . . Time . | . . . Total Robot Build Rating . | . . . Part Schematics Acquired . | . . . Parts Built . | . . . Authchips . | . . . Time . | . . . Total Part Build Rating . | . . . Parts Repaired . | . . . Time . | . . . Parts Recycled . | . . . Recycled Matter . | . . . Retrieved Matter . | . . . Retrieved Components . | . . . Parts Scanalyzed . | . . . Part Schematics Acquired . | . . . Parts Damaged . | . . . Bothacking | -11 -10 -10 ------------ Run | Yrd Mat Sub Used RIF Installer . | . . . Robots Hacked . | . . . Non-combat . | . . . Combat . | . . . Robot Hacks Applied . | . . . Relay Couplers Released . | . . . Fabnet Peak Effective % . | . . . Robots Rewired . | . . . Allies Hacked . | . . . Hacks Repelled . | . . . Allies | -11 -10 -10 -------- Run | Yrd Mat Sub Total Allies . | . . . Largest Group . | . . . Highest-Rated Group . | . . . Highest-Rated Ally . | . . . Total Orders . | . . . Ally Attacks . | . . . Total Damage . | . . . Kills . | . . . Allies Corrupted . | . . . Allies Melted . | . . . Intel | -11 -10 -10 ------- Run | Yrd Mat Sub Robot Analysis Total 1 | . 1 . Derelict Logs Recovered 2 | . . 2 Drone Launches . | . . . Drone Recoveries . | . . . Exploration | -11 -10 -10 ------------- Run | Yrd Mat Sub Turns Passed 2666 | 290 2050 326 Spaces Moved 1454 | 165 1094 195 Core 34 | 4 8 22 Treads 701 | 161 540 . Legs 719 | . 546 173 Wheels . | . . . Hover . | . . . Flight . | . . . Fastest Speed 50 | 50 100 120 Average Speed 140 | 157 140 129 Slowest Speed 200 | 160 200 200 Overloaded Moves . | . . . Propulsion Burnouts . | . . . Robots Hopped . | . . . Cave-ins Triggered . | . . . Exploration Rate (%) 38 | 12 90 12 Regions Visited 2 Branch Regions 1 Pre-discovered Areas 1 | . . 1 Known Exits Taken 1 | . 1 . Unknown Exits Taken 1 | 1 . . Scrap Searched . | . . . Spaces Dug . | . . . Terrain Destroyed 62 | . . 62 Melee . | . . . Projectile . | . . . AOE 62 | . . 62 Terrain Rammed . | . . . Walls Destroyed . | . . . Machines Disabled . | . . . Actions | -11 -10 -10 --------- Run | Yrd Mat Sub Total 1974 | 184 1546 244 Wait 386 | . 373 13 Move 1452 | 164 1093 195 Hop . | . . . Pick Up 25 | 6 14 5 Fast Attach 15 | 4 10 1 Attach 8 | 2 4 2 Detach . | . . . Swap 8 | . 4 4 Drop 19 | . 11 8 Fire 55 | 4 35 16 Melee . | . . . Ram . | . . . Kick . | . . . Crush 6 | 4 2 . Escape Stasis . | . . . Rewire . | . . . Trap . | . . . Miscellaneous . | . . . Route ------- -11/Scrapyard -10/Materials (discovered 6 exits: *Mat x3 / *Min x2 / *Sub) -10/Subcaves (discovered 1 exit: [*Rec]) History --------- Turn | Location | Event 6 | -11/Scrapyard | Discovered new exit (range 16) 291 | -11/Scrapyard | Entered Materials 311 | -10/Materials | Build established: Mutant 755 | -10/Materials | Discovered new exit (range 7) 787 | -10/Materials | Identified exit to Materials 830 | -10/Materials | Discovered new exit (range 16) 852 | -10/Materials | Identified exit to Mines 919 | -10/Materials | Discovered exit to Mines (range 7) 1715 | -10/Materials | Discovered exit to Materials (range 5) 1900 | -10/Materials | Discovered exit to Materials (range 5) 1944 | -10/Materials | Core integrity fell below 50% 2015 | -10/Materials | Discovered new exit (range 7) 2025 | -10/Materials | Identified exit to Subcaves 2341 | -10/Materials | Entered Subcaves 2347 | -10/Subcaves | Learned Materials non-interactive machine intel 2497 | -10/Subcaves | Learned location of Zion (-7) 2637 | -10/Subcaves | Discovered new exit (range 14) 2652 | -10/Subcaves | Ambushed by swarm of Subdwellers 2655 | -10/Subcaves | Core integrity fell below 20% 2667 | -10/Subcaves | Destroyed by VN-R4N(R) with Subdweller Laser Last Messages --------------- 02655_ BV-CIS(R) destroyed. 02655_ 91-P2D(R) destroyed. 02656_ FR-SSL(R): "FREEEEDUMB!" 02656_ ZI-I6E(R) suffers critical hit (Destroy). 02656_ ZI-I6E(R) destroyed. 02656_ Ion Engine destroyed. 02657_ Q8-25Q(g): "Sorry we're late! Had another grouchy Sub to deal with. Who's the new fellow?" 02658_ UG-PYE(R) suffers critical hit (Destroy). 02659_ RT-GRX(R) affixes Scrap Shield Fragment to Scrap Shield. 02661_ VN-R4N(R) suffers critical hit (Destroy). 02661_ VN-R4N(R) knocked back. 02662_ K2-A7F(R): "FREEEEDUMB!" 02662_ NM-S9W(R): "ARGHSUB!" 02662_ Subatomizers dissect the Disposable Heat Sink. 02663_ Discarded Signal Interpreter. 02663_ LX-CUX(R) destroyed. 02664_ HV Slug penetrates BQ-H6W(R). 02664_ BQ-H6W(R) suffers critical hit (Destroy). 02665_ RT-GRX(R) suffers critical hit (Burn). Map ----- +----------------------------------------------------+ | ## ##### " ### ### # # ##### ##????????? | | "! %! # &# ## ## ##???????? | | %&%&!== ####### #???????? | | """*#! ##???## #???????? | | ""##### ##### # # ##???????? | | #???## ## ###### ## #????????? | | #????# #???# ## #????????? | | % #????# ##???# # ####?????? | | ????## ## ###????## ## #?????? | | ## ?????## #######???????## #### #?????? | | ?? ??????# #?????????????## #?## ###?????? | | ??##????# ##???????????### #??# ##???????? | | ????????# ##???????????## #??# ##????????? | | ????????# #???????????## ##??####?????????? | | ????????# #???????????" ##???????????????? | | ????????# #???????????## ## ##??????????????? | | ????????# #???????????## ## ####???????????? | | ???????? ##???????????# gg ##??????????? | | ??????? #?????????????## ##?????????? | | ??????? ?????#######???## #?????????? | | ??????? ?????#""" "##### #?????????? | | ?????? ?????#" ;# % #?????? | | ??????? ?????#"% ; ###### ?????? | | ???????# ????## % ;##?????# ????????? | | ??????????????#<% ! ;###???????????????? | | ??????????????##" % ;@ h[ #???????????????? | | ???????????????#"% ##;;; #??????????????? | | ???????????????#" ?# ;; ##??????????????? | | ????????????????" " ??### ##???????????????? | | ????????????????####?????#;R/! ;#???????????????? | | ????????????????????????? =&!%R ##???????????????? | | ?????????????????????????[%!%RR #????????????????? | | ???????????????????????? !RR* ;#????????????????? | | ???????????????????????? % %&*R#????????????????? | | ???????????????????????? ] !% #????????????????? | | ??????????????????????? R #????????????????? | | ??????????????????????? #????????????????? | | ??????????????????????? R ????????????????? | | ??????????????????????# ???????????????? | | ??????????????????????# ???????????????? | | ??????????????????????# " ??????????????? | | ??????????????????????## ## ??????????????? | | ???????????????????????###?? ??????????????? | | ????????????????????????????## ??????????????? | | ?????????????????????????????? ?????????????????? | | ?????????????????????????????????????????????????? | | ?????????????????????????????????????????????????? | | ?????????????????????????????????????????????????? | | ?????????????????????????????????????????????????? | | ?????????????????????????????????????????????????? | +----------------------------------------------------+ Best States ------------- Heat Dissipation 35 Energy Generation 15 Energy Capacity 250 Matter Stores 300 Matter Capacity 300 Sight Range 16 Terrain Scan Density 10 Evasion (%) 55 Recoil Reduction 2 Item Schematics ----------------- None Robot Schematics ------------------ None Fabricated ------------ Nothing Alien Tech Used ----------------- None Achievements -------------- None Challenges ------------ None Game ------ Seed ArmageddonEnhancedMount Manual? 0 Play Time 01:03:01 Cumulative 10.2 hours Start 2024.04.05 @ 16:31:52 End 2024.04.06 @ 12:00:47 Sessions 6 Manual Loads 0 Difficulty Rogue Special Mode None Game No. 5 Rogue 4 Adventurer 0 Explorer 1 Win Type - Total 0 Types 0/0/0/0/0/0/0/0/0 Lore% 3 Gallery% 15 Achievement% 9 Wizard Run 0 Options --------- Layout 0 ASCII 0 Keyboard 0 Movement Numpad Keybinds 0 Fullscreen 2 Font 24/Terminus Map View 76x50 Zoom Use 18% Tactical HUD 1 Map Filters NONE Filters NONE Steam 1 RUN: 90ac98ca-cd46-4db5-a30a-699a9c92bf0b